bitfinex/quotes_SOLUSD_20241127
["timestamp","ask_amount","ask_price","bid_price","bid_amount"]
[1732706785258,13.03408628,235.3,235.22,13.03408628]
[1732706785459,13.03408628,235.28,235.21,13.03408628]
[1732706785776,13.03408628,235.27,235.19,13.03408628]
[1732706785945,13.03408628,235.27,235.2,13.03408628]
[1732706786666,13.03408628,235.26,235.18,13.03408628]
[1732706786876,13.03408628,235.27,235.2,13.03408628]
[1732706787367,13.03408628,235.3,235.22,13.03408628]
[1732706788240,13.03408628,235.27,235.19,13.03408628]
[1732706788442,13.03408628,235.25,235.17,13.03408628]
[1732706790359,13.03408628,235.26,235.18,13.03408628]
[1732706790767,13.03408628,235.27,235.19,13.03408628]
[1732706790956,13.03408628,235.27,235.12,12.76]
[1732706790957,13.03408628,235.3,235.22,13.03408628]
[1732706791160,13.03408628,235.3,235.23,13.03408628]
[1732706791869,13.03408628,235.31,235.24,13.03408628]
[1732706792067,13.03408628,235.34,235.26,13.03408628]
[1732706792254,13.03408628,235.34,235.27,13.03408628]
[1732706793273,13.03408628,235.37,235.29,13.03408628]
[1732706794970,13.03408628,235.32,235.24,13.03408628]
[1732706795174,13.03408628,235.31,235.24,13.03408628]
[1732706795367,13.03408628,235.32,235.24,13.03408628]
[1732706795669,13.03408628,235.32,235.25,0.84781658]
[1732706796064,13.03408628,235.3,235.13,0.8478113]
[1732706796265,13.03408628,235.31,235.13,2.67185482]
[1732706796582,13.03408628,235.32,235.24,13.03408628]
[1732706801655,13.03408628,235.32,235.25,13.03408628]
[1732706801956,13.03408628,235.33,235.25,13.03408628]
[1732706803875,13.03408628,235.32,235.25,13.03408628]
[1732706804078,13.03408628,235.32,235.24,13.03408628]
[1732706804758,13.03408628,235.3,235.22,13.03408628]
[1732706804966,13.03408628,235.27,235.2,13.03408628]
[1732706805554,13.03408628,235.24,235.17,13.88190553]
[1732706805758,13.03408628,235.23,235.15,13.03408628]
[1732706805977,13.03408628,235.32,235.19,13.03408628]
[1732706805978,13.03408628,235.26,235.19,13.03408628]
[1732706806659,13.03408628,235.24,235.17,13.03408628]
[1732706806983,13.03408628,235.26,235.19,13.03408628]
[1732706809058,13.03408628,235.26,235.14,0.84801847]
[1732706809059,13.03408628,235.25,235.18,13.03408628]
[1732706809674,13.03408628,235.25,235.17,13.03408628]
[1732706809986,13.03408628,235.23,235.16,13.03408628]
[1732706810167,13.03408628,235.19,235.11,15.41112986]
[1732706810358,13.03408628,235.19,235.12,0.84825232]
[1732706811583,13.03408628,235.18,235.11,0.5070172]
[1732706811777,13.03408628,235.15,235.11,0.5070172]
[1732706811978,13.03408628,235.16,235.11,0.5070172]
[1732706812158,13.03408628,235.17,235.11,0.5070172]
[1732706813761,13.03408628,235.18,235.11,0.5070172]
[1732706814465,13.03408628,235.21,235.13,13.03408628]
[1732706814774,13.03408628,235.21,235.14,13.03408628]
[1732706815078,13.03408628,235.2,235.12,13.03408628]
[1732706815264,13.03408628,235.2,235.11,0.5070172]
[1732706815265,13.03408628,235.2,235.13,13.03408628]
[1732706817258,14.86136708,235.32,235.16,13.03408628]
[1732706817259,13.03408628,235.23,235.16,13.03408628]
[1732706818786,13.03408628,235.22,235.15,13.03408628]
[1732706820285,13.03408628,235.23,235.16,13.03408628]
[1732706820476,13.03408628,235.24,235.17,13.88226262]
[1732706820664,13.03408628,235.26,235.18,13.03408628]
[1732706820988,13.03408628,235.28,235.21,13.03408628]
[1732706821860,1.8665872,235.38,235.19,13.03408628]
[1732706822060,6.63858056,235.44,235.12,0.84800292]
[1732706822061,5.07309066,235.39,235.2,13.03408628]
[1732706822284,13.03408628,235.29,235.22,13.03408628]
[1732706822471,13.03408628,235.32,235.25,13.03408628]
[1732706822794,13.03408628,235.34,235.27,13.03408628]
[1732706822966,13.03408628,235.35,235.28,13.88184095]
[1732706823285,13.03408628,235.35,235.28,13.03408628]
[1732706823495,13.03408628,235.34,235.26,13.03408628]
[1732706824497,13.03408628,235.34,235.27,0.84773653]
[1732706824668,13.03408628,235.34,235.27,13.88182281]
[1732706824868,13.03408628,235.36,235.27,13.88182281]
[1732706826179,13.03408628,235.36,235.29,13.03408628]
[1732706826371,13.03408628,235.38,235.3,0.84767422]
[1732706826778,13.03408628,235.38,235.31,13.03408628]
[1732706828694,13.03408628,235.4,235.33,13.03408628]
[1732706831398,5.07309066,235.53,235.39,13.03408628]
[1732706831601,13.03408628,235.49,235.41,13.03408628]
[1732706831909,13.03408628,235.49,235.4,13.03408628]
[1732706832197,13.03408628,235.47,235.39,13.03408628]
[1732706832377,13.03408628,235.48,235.4,13.88132852]
[1732706832696,13.03408628,235.49,235.41,13.03408628]
[1732706833085,13.03408628,235.48,235.4,13.03408628]
[1732706833804,13.03408628,235.47,235.4,13.03408628]
[1732706835391,13.03408628,235.48,235.4,13.03408628]
[1732706836899,13.03408628,235.46,235.33,0.84723452]
[1732706837078,13.03408628,235.46,235.39,13.03408628]
[1732706837390,13.03408628,235.56,235.4,13.88132871]
[1732706837391,13.03408628,235.47,235.4,13.88132871]
[1732706838377,13.03408628,235.48,235.4,13.88132871]
[1732706838578,13.03408628,235.47,235.4,13.88132871]
[1732706838885,13.03408628,235.48,235.4,13.88132871]
[1732706839203,13.03408628,235.48,235.41,13.03408628]
[1732706840478,13.03408628,235.48,235.4,13.03408628]
[1732706840681,13.03408628,235.47,235.4,13.03408628]
[1732706842388,13.03408628,235.48,235.41,13.03408628]
[1732706843900,6.63858056,235.72,235.47,13.03408628]
[1732706844208,13.03408628,235.58,235.51,13.03408628]
[1732706844420,13.03408628,235.59,235.52,13.88092757]
[1732706844906,13.03408628,235.6,235.53,13.03408628]
[1732706845285,13.03408628,235.58,235.45,0.84680321]
[1732706845488,13.03408628,235.58,235.51,13.03408628]
[1732706846202,13.03408628,235.56,235.45,0.84680321]
[1732706846386,13.03408628,235.51,235.44,13.03408628]
[1732706847101,13.03408628,235.52,235.45,13.03408628]
[1732706848506,13.03408628,235.52,235.44,13.03408628]
[1732706849887,13.03408628,235.47,235.4,13.03408628]
[1732706850100,13.03408628,235.49,235.41,13.03408628]
[1732706850279,13.03408628,235.5,235.43,13.03408628]
[1732706850490,5.07309066,235.63,235.45,13.03408628]
[1732706850696,13.03408628,235.55,235.47,13.03408628]
[1732706851011,13.03408628,235.57,235.48,13.03408628]
[1732706851798,13.03408628,235.56,235.48,13.03408628]
[1732706852411,5.07309066,235.69,235.48,13.03408628]
[1732706852589,13.03408628,235.58,235.5,13.03408628]
[1732706854594,13.03408628,235.68,235.5,13.03408628]
[1732706854791,13.03408628,235.58,235.5,13.03408628]
[1732706860008,13.03408628,235.6,235.52,13.03408628]
[1732706860402,13.03408628,235.62,235.54,13.03408628]
[1732706860716,13.03408628,235.62,235.53,0.84682566]
[1732706860717,13.03408628,235.66,235.6,13.03408628]
[1732706860903,39.83148339,235.94,235.62,13.03408628]
[1732706860904,13.034086,235.87,235.62,13.03408628]
[1732706861111,13.03408628,235.71,235.62,13.03408628]
[1732706862115,13.03408628,235.69,235.62,13.03408628]
[1732706863330,13.03408628,235.67,235.6,13.03408628]
[1732706863507,9.12013991,235.86,235.6,13.03408628]
[1732706863709,13.03408628,235.68,235.6,13.03408628]
[1732706864506,13.03408628,235.7,235.62,13.03408628]
[1732706864825,13.03408628,235.72,235.64,13.03408628]
[1732706865594,13.03408628,235.7,235.64,13.03408628]
[1732706868011,13.03408628,235.7,235.57,0.84638731]
[1732706868221,13.03408628,235.7,235.61,13.03408628]
[1732706868598,1.79080766,235.84,235.61,13.03408628]
[1732706868798,1.79080766,235.84,235.63,13.03408628]
[1732706868799,13.03408628,235.71,235.63,13.03408628]
[1732706870637,13.03408628,235.73,235.63,13.03408628]
[1732706870922,13.03408628,235.73,235.65,13.03408628]
[1732706871627,13.03408628,235.73,235.57,0.84638731]
[1732706871628,13.03408628,235.71,235.63,13.03408628]
[1732706874503,13.03408628,235.73,235.65,13.03408628]
[1732706874902,13.03408628,235.75,235.67,13.03408628]
[1732706876720,13.03408628,235.77,235.69,13.03408628]
[1732706878915,1.83732595,235.86,235.66,13.03408628]
[1732706878916,13.03408628,235.75,235.66,13.03408628]
[1732706881326,13.03408628,235.75,235.68,13.03408628]
[1732706881505,13.03408628,235.81,235.73,13.03408628]
[1732706881902,13.03408628,235.83,235.75,13.03408628]
[1732706882247,13.03408628,235.87,235.79,13.03408628]
[1732706883430,13.03408628,235.85,235.79,13.03408628]
[1732706883925,13.03408628,235.83,235.75,13.03408628]
[1732706884341,13.03408628,235.85,235.77,13.03408628]
[1732706884835,13.03408628,235.87,235.79,13.03408628]
[1732706885405,13.03408628,235.85,235.77,13.03408628]
[1732706886132,13.03408628,235.87,235.79,13.03408628]
[1732706887334,13.03408628,235.83,235.75,13.03408628]
[1732706889729,13.03408628,235.85,235.77,13.03408628]
[1732706891212,13.03408628,235.81,235.73,13.03408628]
[1732706891634,13.03408628,235.78,235.69,0.84603951]
[1732706891811,13.03408628,235.76,235.67,13.03408628]
[1732706892011,0.5070172,235.93,235.61,0.84611489]
[1732706892012,13.03408628,235.74,235.65,13.03408628]
[1732706892440,13.03408628,235.74,235.67,13.03408628]
[1732706896116,0.5070172,235.93,235.71,13.03408628]
[1732706896319,13.03408628,235.8,235.73,13.03408628]
[1732706896643,13.03408628,235.92,235.73,13.03408628]
[1732706896644,13.03408628,235.81,235.73,13.03408628]
[1732706900131,13.03408628,235.77,235.6,0.84614374]
[1732706900318,13.03408628,235.77,235.69,13.03408628]
[1732706901031,13.03408628,235.72,235.6,0.84614374]
[1732706901237,13.03408628,235.71,235.63,13.03408628]
[1732706901441,13.03408628,235.7,235.59,0.84628973]
[1732706901618,13.03408628,235.7,235.63,13.03408628]
[1732706902039,13.03408628,235.7,235.62,13.03408628]
[1732706902222,13.03408628,235.71,235.63,13.03408628]
[1732706902422,13.03408628,235.71,235.64,13.03408628]
[1732706902943,13.03408628,235.71,235.63,13.03408628]
[1732706903414,13.03408628,235.72,235.64,13.03408628]
[1732706903614,13.03408628,235.8,235.51,0.84640392]
[1732706903615,13.03408628,235.65,235.51,0.84640392]
[1732706903823,13.03408628,235.65,235.56,13.03408628]
[1732706904035,13.03408628,235.8,235.58,13.03408628]
[1732706904036,13.03408628,235.67,235.58,13.03408628]
[1732706904237,13.03408628,235.67,235.6,13.03408628]
[1732706905530,13.03408628,235.68,235.61,13.03408628]
[1732706906724,13.03408628,235.68,235.6,13.03408628]
[1732706906925,13.03408628,235.67,235.59,13.03408628]
[1732706907339,13.03408628,235.68,235.6,13.03408628]
[1732706907928,13.03408628,235.68,235.61,13.03408628]
[1732706908131,13.03408628,235.71,235.64,13.03408628]
[1732706908445,13.03408628,235.72,235.64,13.03408628]
[1732706908827,13.03408628,235.7,235.62,13.03408628]
[1732706909228,13.03408628,235.71,235.63,13.03408628]
[1732706912326,13.03408628,235.69,235.6,13.03408628]
[1732706913057,13.03408628,235.65,235.56,13.03408628]
[1732706913257,13.03408628,235.8,235.6,13.03408628]
[1732706913258,13.03408628,235.67,235.6,13.03408628]
[1732706913555,13.03408628,235.65,235.58,13.03408628]
[1732706914333,13.03408628,235.67,235.58,13.03408628]
[1732706915247,13.03408628,235.65,235.58,13.03408628]
[1732706916144,13.03408628,235.65,235.53,0.84668622]
[1732706916331,13.03408628,235.61,235.51,13.03408628]
[1732706916654,13.03408628,235.61,235.53,13.03408628]
[1732706918049,13.03408628,235.61,235.51,13.03408628]
[1732706918560,13.03408628,235.59,235.51,13.03408628]
[1732706918760,13.03408628,235.55,235.42,0.84690416]
[1732706918928,13.03408628,235.55,235.46,13.03408628]
[1732706919453,13.03408628,235.55,235.48,13.03408628]
[1732706919839,13.03408628,235.59,235.52,13.03408628]
[1732706921039,13.03408628,235.59,235.5,13.03408628]
[1732706921841,13.03408628,235.59,235.52,13.03408628]
[1732706922048,13.03408628,235.61,235.52,13.03408628]
[1732706923133,13.03408628,235.59,235.52,13.03408628]
[1732706924531,13.03408628,235.59,235.45,0.84695813]
[1732706924742,13.03408628,235.57,235.49,13.03408628]
[1732706926238,13.03408628,235.59,235.51,13.03408628]
[1732706927943,13.03408628,235.57,235.49,13.03408628]
[1732706928147,13.03408628,235.55,235.47,13.03408628]
[1732706932155,23.776884,235.62,235.47,13.03408628]
[1732706932453,13.03408628,235.56,235.47,13.03408628]
[1732706934167,13.03408628,235.56,235.49,13.03408628]
[1732706934670,13.03408628,235.56,235.47,13.03408628]
[1732706936462,8.31826178,235.55,235.46,8.31826178]
[1732706937743,8.31826178,235.55,235.42,0.84709357]
[1732706937965,8.31826178,235.51,235.41,8.31826178]
[1732706938203,8.31826178,235.49,235.41,8.31826178]
[1732706939666,8.31826178,235.42,235.25,13.607282]
[1732706939861,8.31826178,235.42,235.33,8.31826178]
[1732706940040,8.31826178,235.4,235.25,13.607282]
[1732706940243,3.04606567,235.58,235.25,13.607282]
[1732706940562,13.01325414,235.4,235.32,13.01325414]
[1732706942164,13.01325414,235.56,235.32,13.01325414]
[1732706942165,13.01325414,235.39,235.32,13.01325414]
[1732706942341,13.01325414,235.4,235.32,13.01325414]
[1732706943563,13.01325414,235.4,235.33,13.01325414]
[1732706944166,13.01325414,235.4,235.27,0.84760324]
[1732706944167,13.01325414,235.39,235.32,13.01325414]
[1732706944355,13.01325414,235.45,235.38,13.01325414]
[1732706944555,13.01325414,235.47,235.39,13.01325414]
[1732706944866,13.01325414,235.46,235.39,13.01325414]
[1732706945039,13.01325414,235.45,235.38,13.01325414]
[1732706946349,13.01325414,235.46,235.38,13.01325414]
[1732706946751,23.776884,235.55,235.33,0.84760653]
[1732706946752,13.01325414,235.47,235.39,13.01325414]
[1732706947576,13.01325414,235.52,235.44,13.01325414]
[1732706947768,13.01325414,235.52,235.4,0.84740565]
[1732706947769,13.01325414,235.52,235.45,13.01325414]
[1732706948345,13.01325414,235.53,235.45,13.01325414]
[1732706948564,14.81816928,235.68,235.32,27.60995695]
[1732706948565,13.01325414,235.55,235.47,13.01325414]
[1732706948772,13.01325414,235.55,235.48,13.01325414]
[1732706948944,13.01325414,235.58,235.5,13.01325414]
[1732706949145,13.01325414,235.6,235.52,13.01325414]
[1732706949647,13.01325414,235.59,235.51,13.01325414]
[1732706950168,13.01325414,235.6,235.51,13.01325414]
[1732706952873,1.80491514,235.68,235.51,13.01325414]
[1732706953050,1.80491514,235.68,235.53,13.01325414]
[1732706953051,13.01325414,235.6,235.53,13.01325414]
[1732706956862,13.01325414,235.6,235.51,13.01325414]
[1732706960065,13.01325414,235.6,235.53,13.01325414]
[1732706962261,13.01325414,235.62,235.53,13.01325414]
[1732706965680,23.776884,235.67,235.53,13.01325414]
[1732706965870,13.01325414,235.63,235.56,13.01325414]
[1732706966080,13.01325414,235.67,235.6,13.01325414]
[1732706966364,13.01325414,235.69,235.6,13.01325414]
[1732706967258,13.01325414,235.69,235.62,13.01325414]
[1732706968656,13.01325414,235.69,235.62,13.01325414]
[1732706970264,8.30798996,235.69,235.61,8.30798996]
[1732706971779,8.30798996,235.66,235.52,0.84659948]
[1732706971958,8.30798996,235.63,235.55,8.30798996]
[1732706972280,8.30798996,235.64,235.56,8.30798996]
[1732706972481,8.30798996,235.63,235.56,8.30798996]
[1732706972779,8.30798996,235.62,235.55,8.30798996]
[1732706972960,8.30798996,235.63,235.56,8.30798996]
[1732706974278,12.98739458,235.64,235.56,12.98739458]
[1732706975780,12.98739458,235.64,235.58,12.98739458]
[1732706975984,12.98739458,235.66,235.58,12.98739458]
[1732706978157,12.98739458,235.64,235.56,12.98739458]
[1732706979686,23.776884,235.72,235.56,12.98739458]
[1732706979868,12.98739458,235.65,235.56,12.98739458]
[1732706980061,28.13633484,235.79,235.58,12.98739458]
[1732706980265,12.98739458,235.68,235.6,12.98739458]
[1732706981981,12.98739458,235.64,235.56,12.98739458]
[1732706984283,12.98739458,235.66,235.58,12.98739458]
[1732706985388,12.98739458,235.68,235.6,12.98739458]
[1732706986091,12.98739458,235.7,235.62,12.98739458]
[1732706990089,23.776884,235.8,235.68,12.98739458]
[1732706990287,12.98739458,235.76,235.68,12.98739458]
[1732706991314,12.98739458,235.78,235.7,12.98739458]
[1732706993978,12.98739458,235.78,235.64,23.776884]
[1732706994181,12.98739458,235.78,235.69,12.98739458]
[1732706994379,8.30242751,235.77,235.69,8.30242751]
[1732706998782,8.30242751,235.77,235.64,23.776884]
[1732706999000,8.30242751,235.77,235.68,8.30242751]
[1732706999795,8.30242751,235.77,235.58,0.84628872]
[1732706999796,8.30242751,235.77,235.59,0.97183876]
[1732706999992,8.30242751,235.75,235.6,23.776884]
[1732707000302,8.30242751,235.75,235.66,8.30242751]
[1732707000498,8.30242751,235.71,235.61,0.84647493]
[1732707000716,8.30242751,235.67,235.54,0.84641904]
[1732707000886,8.30242751,235.65,235.57,8.30242751]
[1732707001286,8.30242751,235.69,235.61,8.30242751]
[1732707001489,8.30242751,235.7,235.61,8.30242751]
[1732707001905,8.30242751,235.7,235.63,8.30242751]
[1732707002115,8.30242751,235.72,235.63,8.30242751]
[1732707002406,8.30242751,235.72,235.57,0.84661369]
[1732707002407,12.97759607,235.73,235.65,12.97759607]
[1732707002895,12.97759607,235.69,235.61,12.97759607]
[1732707003096,12.97759607,235.7,235.61,12.97759607]
[1732707003301,12.97759607,235.72,235.65,12.97759607]
[1732707003497,23.776884,235.79,235.65,12.97759607]
[1732707003807,12.97759607,235.74,235.65,12.97759607]
[1732707004004,12.97759607,235.76,235.67,12.97759607]
[1732707004617,6.55348271,235.89,235.71,12.97759607]
[1732707004788,12.97759607,235.78,235.71,12.97759607]
[1732707005905,12.97759607,235.76,235.67,12.97759607]
[1732707006700,12.97759607,235.74,235.65,12.97759607]
[1732707006904,12.97759607,235.7,235.61,12.97759607]
[1732707008000,12.97759607,235.7,235.63,12.97759607]
[1732707008407,8.43488418,235.86,235.57,0.84660884]
[1732707008408,12.97759607,235.74,235.65,12.97759607]
[1732707008606,12.97759607,235.76,235.69,12.97759607]
[1732707008805,1.88140147,235.86,235.69,12.97759607]
[1732707008990,1.88140147,235.86,235.71,12.97759607]
[1732707009197,6.55348271,235.92,235.73,12.97759607]
[1732707009405,12.97759607,235.81,235.73,12.97759607]
[1732707012106,21.34772802,235.92,235.71,12.97759607]
[1732707012107,12.97759607,235.79,235.71,12.97759607]
[1732707013246,21.34772802,235.92,235.73,12.97759607]
[1732707013247,12.97759607,235.81,235.73,12.97759607]
[1732707014115,12.97759607,235.86,235.77,12.97759607]
[1732707016088,0.5070172,235.93,235.7,0.12549]
[1732707016089,12.97759607,235.9,235.81,12.97759607]
[1732707016506,12.97759607,235.9,235.83,12.97759607]
[1732707017024,0.5070172,235.93,235.85,12.97759607]
[1732707018720,12.97759607,235.9,235.83,12.97759607]
[1732707019900,12.97759607,235.9,235.81,12.97759607]
[1732707020224,0.5070172,235.93,235.85,12.97759607]
[1732707021214,0.5070172,235.93,235.87,12.97759607]
[1732707021424,0.5070172,235.93,235.85,12.97759607]
[1732707022900,0.5070172,235.93,235.87,12.97759607]
[1732707026211,0.5070172,235.93,235.91,12.97759607]
[1732707028328,0.5070172,235.93,235.92,23.776884]
[1732707028527,0.5070172,235.93,235.92,24.74778456]
[1732707031403,0.5070172,235.93,235.92,32.97759607]
[1732707031610,0.5070172,235.93,235.92,56.75448007]
[1732707032115,0.5070172,235.93,235.9,12.97759607]
[1732707032314,0.5070172,235.93,235.86,12.97759607]
[1732707032528,12.97759607,235.92,235.84,12.97759607]
[1732707032724,12.97759607,235.89,235.82,12.97759607]
[1732707033206,12.97759607,235.89,235.68,12.97759607]
[1732707033207,12.97759607,235.89,235.8,12.97759607]
[1732707033602,12.97759607,235.89,235.82,12.97759607]
[1732707033827,0.5070172,235.93,235.84,12.97759607]
[1732707034020,0.5070172,235.93,235.88,12.97759607]
[1732707034200,0.5070172,235.93,235.9,12.97759607]
[1732707034398,0.5070172,235.93,235.91,23.776884]
[1732707035107,0.5070172,235.93,235.88,12.97759607]
[1732707035428,0.5070172,235.93,235.83,0.84556282]
[1732707035429,0.5070172,235.93,235.9,12.97759607]
[1732707035756,0.5070172,235.93,235.91,23.776884]
[1732707035922,0.5070172,235.93,235.88,12.97759607]
[1732707036109,0.5070172,235.93,235.89,23.776884]
[1732707037312,0.5070172,235.93,235.87,23.776884]
[1732707038928,0.5070172,235.93,235.88,12.97759607]
[1732707039101,0.5070172,235.93,235.9,12.97759607]
[1732707039622,0.5070172,235.93,235.88,12.97759607]
[1732707039811,0.5070172,235.93,235.9,12.97759607]
[1732707040135,0.5070172,235.93,235.91,23.776884]
[1732707040312,0.5070172,235.93,235.92,36.75448007]
[1732707040710,0.5070172,235.93,235.92,23.776884]
[1732707041027,0.5070172,235.93,235.91,23.776884]
[1732707041227,0.5070172,235.93,235.9,12.97759607]
[1732707041426,0.5070172,235.93,235.91,23.776884]
[1732707042003,0.5070172,235.93,235.89,23.776884]
[1732707042610,0.5070172,235.93,235.87,23.776884]
[1732707042818,0.5070172,235.93,235.89,23.776884]
[1732707046210,13.48461327,235.93,235.84,12.97759607]
[1732707046514,13.48461327,235.93,235.85,23.776884]
[1732707047025,13.48461327,235.93,235.76,12.977596]
[1732707047026,12.97759607,235.89,235.8,12.97759607]
[1732707047238,12.97759607,235.89,235.82,12.97759607]
[1732707047613,12.97759607,235.91,235.82,12.97759607]
[1732707048018,13.48461327,235.93,235.84,12.97759607]
[1732707048330,13.48461327,235.93,235.85,23.776884]
[1732707049714,13.48461327,235.93,235.86,12.97759607]
[1732707049924,0.5070172,235.93,235.87,23.776884]
[1732707050426,0.5070172,235.93,235.89,23.776884]
[1732707051334,0.5070172,235.93,235.91,23.776884]
[1732707052439,13.48461327,235.93,235.82,12.97759607]
[1732707052635,12.97759607,235.91,235.82,12.97759607]
[1732707053811,12.97759607,235.91,235.83,23.776884]
[1732707054815,12.97759607,235.91,235.84,12.97759607]
[1732707055017,13.48461327,235.93,235.84,12.97759607]
[1732707055226,13.48461327,235.93,235.85,23.776884]
[1732707056130,0.5070172,235.93,235.88,12.97759607]
[1732707056316,0.5070172,235.93,235.89,23.776884]
[1732707056737,0.5070172,235.93,235.91,23.776884]
[1732707058217,0.5070172,235.93,235.89,23.776884]
[1732707058834,0.5070172,235.93,235.84,12.97759607]
[1732707058835,12.97759607,235.92,235.84,12.97759607]
[1732707059143,12.97759607,235.92,235.82,12.97759607]
[1732707061419,12.97759607,235.92,235.84,12.97759607]
[1732707061930,0.5070172,235.93,235.86,12.97759607]
[1732707062242,0.5070172,235.93,235.87,23.776884]
[1732707062423,0.5070172,235.93,235.89,23.776884]
[1732707062842,12.97759607,235.92,235.77,20.0]
[1732707063014,12.97759607,235.92,235.85,12.97759607]
[1732707063221,0.5070172,235.93,235.85,12.97759607]
[1732707063434,0.5070172,235.93,235.87,12.97759607]
[1732707064025,0.5070172,235.93,235.88,23.776884]
[1732707065442,0.5070172,235.93,235.86,23.776884]
[1732707066638,0.5070172,235.93,235.78,0.84574358]
[1732707066639,12.97759607,235.92,235.83,12.97759607]
[1732707066825,12.97759607,235.88,235.79,12.97759607]
[1732707067145,0.5070172,235.93,235.81,12.97759607]
[1732707067333,12.97759607,235.9,235.83,12.97759607]
[1732707067644,12.97759607,235.92,235.85,12.97759607]
[1732707068324,12.97759607,235.92,235.86,23.776884]
[1732707069841,12.97759607,235.87,235.72,23.59321347]
[1732707070048,12.97759607,235.75,235.6,6.61591247]
[1732707070352,12.97759607,235.69,235.61,12.97759607]
[1732707070543,12.97759607,235.69,235.6,1.83867237]
[1732707070844,12.97759607,235.8,235.58,16.986208]
[1732707070845,12.97759607,235.67,235.58,16.986208]
[1732707071051,12.97759607,235.67,235.57,12.97759607]
[1732707071426,12.97759607,235.65,235.55,12.97759607]
[1732707071848,12.97759607,235.63,235.55,12.97759607]
[1732707072641,12.97759607,235.63,235.53,12.97759607]
[1732707072940,12.97759607,235.63,235.55,12.97759607]
[1732707073744,12.97759607,235.8,235.55,12.97759607]
[1732707073745,12.97759607,235.65,235.55,12.97759607]
[1732707074039,12.97759607,235.67,235.59,12.97759607]
[1732707074217,12.97759607,235.8,235.6,23.776884]
[1732707074218,12.97759607,235.65,235.6,23.776884]
[1732707074844,12.97759607,235.63,235.55,12.97759607]
[1732707075021,12.97759607,235.63,235.53,12.97759607]
[1732707075535,12.97759607,235.61,235.53,12.97759607]
[1732707076146,12.97759607,235.59,235.51,12.97759607]
[1732707076445,20.78752053,235.59,235.5,20.78752053]
[1732707077519,142.278228,235.86,235.58,23.776884]
[1732707077725,20.78752053,235.67,235.6,23.776884]
[1732707078435,20.78752053,235.69,235.62,23.776884]
[1732707078747,20.78752053,235.69,235.61,20.78752053]
[1732707078934,20.78752053,235.71,235.62,23.776884]
[1732707079330,20.78752053,235.71,235.64,23.776884]
[1732707079733,20.78752053,235.69,235.62,23.776884]
[1732707080557,20.78752053,235.69,235.6,23.776884]
[1732707080955,20.78752053,235.69,235.61,20.78752053]
[1732707081433,20.78752053,235.69,235.62,23.776884]
[1732707081641,20.78752053,235.71,235.62,23.776884]
[1732707081839,20.78752053,235.69,235.62,23.776884]
[1732707082548,20.78752053,235.71,235.62,23.776884]
[1732707083132,20.78752053,235.71,235.63,20.78752053]
[1732707083454,20.78752053,235.71,235.64,23.776884]
[1732707085142,20.78752053,235.69,235.62,23.776884]
[1732707085340,20.78752053,235.67,235.6,23.776884]
[1732707085543,20.78752053,235.67,235.58,23.776884]
[1732707086229,20.78752053,235.67,235.59,20.78752053]
[1732707086434,20.78752053,235.67,235.6,23.776884]
[1732707086637,142.278228,235.86,235.67,23.776884]
[1732707086834,20.78752053,235.82,235.73,20.78752053]
[1732707087047,20.78752053,235.82,235.74,23.776884]
[1732707087353,20.78752053,235.8,235.72,23.776884]
[1732707087857,20.78752053,235.82,235.72,23.776884]
[1732707088039,20.78752053,235.8,235.72,23.776884]
[1732707088354,20.78752053,235.82,235.74,23.776884]
[1732707088664,163.06574853,235.86,235.78,23.776884]
[1732707089562,20.78752053,235.84,235.78,23.776884]
[1732707089752,20.78752053,235.84,235.76,23.776884]
[1732707090255,163.06574853,235.86,235.77,20.78752053]
[1732707090440,142.278228,235.86,235.8,23.776884]
[1732707091159,142.278228,235.86,235.85,20.78752053]
[1732707091366,142.278228,235.86,235.85,44.68989453]
[1732707091547,140.71320789,235.86,235.85,44.68989453]
[1732707091735,138.12492305,235.86,235.85,44.68989453]
[1732707094047,114.35492305,235.86,235.85,44.68989453]
[1732707095339,114.35492305,235.86,235.85,65.47741506]
[1732707095866,114.35492305,235.86,235.85,66.32299936]
[1732707096360,74.58936164,235.86,235.85,79.07299936]
[1732707096556,39.76556141,235.86,235.85,79.07299936]
[1732707096765,37.12856141,235.86,235.85,79.07299936]
[1732707097148,30.21356141,235.86,235.85,79.07299936]
[1732707097346,6.58356141,235.86,235.85,79.07299936]
[1732707097867,0.5070172,235.93,235.92,20.12549]
[1732707098044,0.5070172,235.93,235.92,62.545814]
[1732707098569,0.5070172,235.93,235.92,86.322698]
[1732707104155,0.5070172,235.93,235.92,21.63280347]
[1732707104461,0.5070172,235.93,235.92,44.56440453]
[1732707105986,0.5070172,235.93,235.92,20.78752053]
[1732707106343,0.5070172,235.93,235.92,12.94332547]
[1732707107162,0.5070172,235.93,235.92,26.01214094]
[1732707107975,0.5070172,235.93,235.92,36.72020947]
[1732707115274,0.5070172,235.93,235.92,49.66353494]
[1732707116077,0.5070172,235.93,235.92,36.72020947]
[1732707116276,0.5070172,235.93,235.86,0.8454811]
[1732707116477,0.5070172,235.93,235.85,12.94332547]
[1732707116679,0.5070172,235.93,235.91,12.94332547]
[1732707118974,20.0,235.89,235.83,1.80474481]
[1732707119175,12.94332547,235.89,235.83,1.80474481]